[Event "Titled Tuesday Blitz August 3 2021"]
[White "Liyanage, Ranindu Dilshan"]
[Black "Jian, Alex"]
[WhiteFideId "9915834"]
[BlackFideId "30901022"]
[WhiteElo "1839"]
[BlackElo "2111"]
[Result "1-0"]
[Round "04"]
[TimeControl "180+1"]
[Date "2021.08.03"]
[WhiteClock "0:00:12"]
[BlackClock "0:00:08"]

1. e4 {[%clk 0:03:00]}  c5 {[%clk 0:03:00]} 2. Nf3 {[%clk 0:02:59]}  Nc6 {[%clk 0:03:00]} 3. Bb5 {[%clk 0:02:58]}  g6 {[%clk 0:03:00]} 4. O-O {[%clk 0:02:58]}  Bg7 {[%clk 0:03:00]} 5. Re1 {[%clk 0:02:58]}  Nf6 {[%clk 0:03:00]} 6. c3 {[%clk 0:02:59]}  O-O {[%clk 0:03:00]} 7. d4 {[%clk 0:02:57]}  d5 {[%clk 0:03:00]} 8. e5 {[%clk 0:02:55]}  Ne4 {[%clk 0:03:01]} 9. Bxc6 {[%clk 0:02:52]}  bxc6 {[%clk 0:03:00]} 10. Be3 {[%clk 0:02:51]}  cxd4 {[%clk 0:02:59]} 11. cxd4 {[%clk 0:02:52]}  Qb6 {[%clk 0:02:58]} 12. Qc1 {[%clk 0:02:49]}  Bg4 {[%clk 0:02:57]} 13. Nfd2 {[%clk 0:02:45]}  Nxd2 {[%clk 0:02:56]} 14. Nxd2 {[%clk 0:02:46]}  Rab8 {[%clk 0:02:53]} 15. Rb1 {[%clk 0:02:39]}  Bf5 {[%clk 0:02:52]} 16. Ra1 {[%clk 0:02:38]}  c5 {[%clk 0:02:38]} 17. dxc5 {[%clk 0:02:28]}  Qxb2 {[%clk 0:02:38]} 18. Qxb2 {[%clk 0:02:18]}  Rxb2 {[%clk 0:02:38]} 19. Nf3 {[%clk 0:01:58]}  Be4 {[%clk 0:02:12]} 20. Bd4 {[%clk 0:01:50]}  Rb4 {[%clk 0:02:05]} 21. a3 {[%clk 0:01:24]}  Rc4 {[%clk 0:02:01]} 22. Rac1 {[%clk 0:01:14]}  Bxf3 {[%clk 0:01:40]} 23. Rxc4 {[%clk 0:01:14]}  dxc4 {[%clk 0:01:41]} 24. gxf3 {[%clk 0:01:14]}  Rd8 {[%clk 0:01:12]} 25. Re4 {[%clk 0:00:55]}  Rc8 {[%clk 0:00:37]} 26. f4 {[%clk 0:00:48]}  e6 {[%clk 0:00:32]} 27. Be3 {[%clk 0:00:44]}  Bf8 {[%clk 0:00:15]} 28. Rxc4 {[%clk 0:00:44]}  Rc6 {[%clk 0:00:16]} 29. Ra4 {[%clk 0:00:35]}  Bxc5 {[%clk 0:00:14]} 30. Rc4 {[%clk 0:00:33]}  Bxe3 {[%clk 0:00:10]} 31. Rxc6 {[%clk 0:00:32]}  Bxf4 {[%clk 0:00:11]} 32. Rc5 {[%clk 0:00:24]}  Bd2 {[%clk 0:00:11]} 33. Kf1 {[%clk 0:00:21]}  Bf4 {[%clk 0:00:04]} 34. Ra5 {[%clk 0:00:20]}  Bxh2 {[%clk 0:00:04]} 35. Ke2 {[%clk 0:00:19]}  h5 {[%clk 0:00:03]} 36. Kf3 {[%clk 0:00:19]}  Kg7 {[%clk 0:00:03]} 37. Ke4 {[%clk 0:00:18]}  g5 {[%clk 0:00:03]} 38. Rxa7 {[%clk 0:00:18]}  h4 {[%clk 0:00:03]} 39. Ra5 {[%clk 0:00:16]}  Kg6 {[%clk 0:00:04]} 40. Kf3 {[%clk 0:00:16]}  Kf5 {[%clk 0:00:04]} 41. Kg2 {[%clk 0:00:16]}  Bxe5 {[%clk 0:00:04]} 42. Rb5 {[%clk 0:00:15]}  g4 {[%clk 0:00:04]} 43. a4 {[%clk 0:00:14]}  h3+ {[%clk 0:00:05]} 44. Kh1 {[%clk 0:00:14]}  Ke4 {[%clk 0:00:05]} 45. a5 {[%clk 0:00:13]}  Bd4 {[%clk 0:00:03]} 46. Rb4 {[%clk 0:00:11]}  e5 {[%clk 0:00:03]} 47. a6 {[%clk 0:00:11]}  Kf3 {[%clk 0:00:04]} 48. a7 {[%clk 0:00:08]}  Kxf2 {[%clk 0:00:02]} 49. a8=Q {[%clk 0:00:07]}  g3 {[%clk 0:00:03]} 50. Qa2+ {[%clk 0:00:07]}  Kf3 {[%clk 0:00:03]} 51. Rb3+ {[%clk 0:00:07]}  Be3 {[%clk 0:00:04]} 52. Rxe3+ {[%clk 0:00:04]}  Kxe3 {[%clk 0:00:04]} 53. Qb3+ {[%clk 0:00:05]}  Kf2 {[%clk 0:00:04]} 54. Qc2+ {[%clk 0:00:05]}  Kf3 {[%clk 0:00:04]} 55. Qd3+ {[%clk 0:00:05]}  Kf2 {[%clk 0:00:05]} 56. Qd2+ {[%clk 0:00:05]}  Kf3 {[%clk 0:00:05]} 57. Qd3+ {[%clk 0:00:06]}  Kf2 {[%clk 0:00:05]} 58. Qf5+ {[%clk 0:00:07]}  Ke2 {[%clk 0:00:05]} 59. Qxh3 {[%clk 0:00:07]}  Kf2 {[%clk 0:00:05]} 60. Qg2+ {[%clk 0:00:07]}  Ke3 {[%clk 0:00:05]} 61. Qxg3+ {[%clk 0:00:08]}  Ke4 {[%clk 0:00:06]} 62. Kg2 {[%clk 0:00:09]}  f5 {[%clk 0:00:06]} 63. Qf3+ {[%clk 0:00:09]}  Kd4 {[%clk 0:00:06]} 64. Qxf5 {[%clk 0:00:10]}  e4 {[%clk 0:00:07]} 65. Kf2 {[%clk 0:00:11]}  Kd3 {[%clk 0:00:07]} 66. Qg6 {[%clk 0:00:11]}  Kd4 {[%clk 0:00:07]} 67. Ke2 {[%clk 0:00:11]}  Ke5 {[%clk 0:00:07]} 68. Qg4 {[%clk 0:00:11]}  Kd5 {[%clk 0:00:08]} 69. Qf4 {[%clk 0:00:11]}  Kd4 {[%clk 0:00:08]} 70. Qg4 {[%clk 0:00:10]}  Ke5 {[%clk 0:00:08]} 71. Ke3 {[%clk 0:00:11]}  Kd5 {[%clk 0:00:07]} 72. Qxe4+ {[%clk 0:00:11]}  Kd6 {[%clk 0:00:08]} 73. Qf5 {[%clk 0:00:11]}  Kc6 {[%clk 0:00:08]} 74. Kd4 {[%clk 0:00:12]}  Kb7 {[%clk 0:00:08]} 75. Qe6 {[%clk 0:00:12]} 1-0


[Site "https://www.chess.com"]

[Event "Titled Tuesday Blitz August 3 2021"]
[White "Mitusov, Semen"]
[Black "Goltsev, Dmitry"]
[WhiteFideId "14151049"]
[BlackFideId "24176710"]
[WhiteElo "2525"]
[BlackElo "2822"]
[Result "0-1"]
[Round "04"]
[TimeControl "180+1"]
[Date "2021.08.03"]
[WhiteClock "0:00:26"]
[BlackClock "0:01:39"]

1. e4 {[%clk 0:03:00]}  e6 {[%clk 0:02:59]} 2. Nf3 {[%clk 0:03:00]}  d5 {[%clk 0:03:00]} 3. Nc3 {[%clk 0:03:01]}  Nf6 {[%clk 0:03:00]} 4. e5 {[%clk 0:03:01]}  Nfd7 {[%clk 0:03:00]} 5. d4 {[%clk 0:03:01]}  c5 {[%clk 0:03:01]} 6. dxc5 {[%clk 0:03:02]}  Bxc5 {[%clk 0:03:01]} 7. Bd3 {[%clk 0:03:01]}  Nc6 {[%clk 0:03:00]} 8. Bf4 {[%clk 0:03:02]}  a6 {[%clk 0:02:57]} 9. a3 {[%clk 0:03:01]}  h6 {[%clk 0:02:58]} 10. Bg3 {[%clk 0:02:57]}  b5 {[%clk 0:02:56]} 11. O-O {[%clk 0:02:57]}  Bb7 {[%clk 0:02:56]} 12. Ne2 {[%clk 0:02:53]}  g5 {[%clk 0:02:50]} 13. c3 {[%clk 0:02:38]}  h5 {[%clk 0:02:44]} 14. h4 {[%clk 0:02:28]}  g4 {[%clk 0:02:39]} 15. Nfd4 {[%clk 0:02:28]}  Ncxe5 {[%clk 0:02:32]} 16. Bc2 {[%clk 0:02:26]}  Nc4 {[%clk 0:02:30]} 17. b4 {[%clk 0:02:23]}  Be7 {[%clk 0:02:28]} 18. a4 {[%clk 0:02:19]}  Bxh4 {[%clk 0:02:18]} 19. Bxh4 {[%clk 0:02:14]}  Qxh4 {[%clk 0:02:19]} 20. axb5 {[%clk 0:02:14]}  Nde5 {[%clk 0:02:12]} 21. bxa6 {[%clk 0:02:08]}  Rxa6 {[%clk 0:02:13]} 22. Rxa6 {[%clk 0:02:02]}  Bxa6 {[%clk 0:02:14]} 23. Ba4+ {[%clk 0:01:54]}  Kf8 {[%clk 0:02:13]} 24. b5 {[%clk 0:01:47]}  Bb7 {[%clk 0:02:12]} 25. Nf4 {[%clk 0:01:40]}  Rg8 {[%clk 0:02:07]} 26. g3 {[%clk 0:01:30]}  Qf6 {[%clk 0:02:03]} 27. Qe2 {[%clk 0:00:59]}  h4 {[%clk 0:01:54]} 28. Bc2 {[%clk 0:00:56]}  Rh8 {[%clk 0:01:51]} 29. Nd3 {[%clk 0:00:44]}  Nf3+ {[%clk 0:01:40]} 30. Nxf3 {[%clk 0:00:30]}  gxf3 {[%clk 0:01:41]} 31. Qd2 {[%clk 0:00:26]}  Nxd2 {[%clk 0:01:39]} 0-1


[Site "https://www.chess.com"]

[Event "Titled Tuesday Blitz August 3 2021"]
[White "Mohammad Nubairshah Shaikh"]
[Black "Cunjalo, Faris"]
[WhiteFideId "5053196"]
[BlackFideId "14410710"]
[WhiteElo "2382"]
[BlackElo "2234"]
[Result "1-0"]
[Round "04"]
[TimeControl "180+1"]
[Date "2021.08.03"]
[WhiteClock "0:00:40"]
[BlackClock "0:00:02"]

1. d4 {[%clk 0:03:00]}  e6 {[%clk 0:03:00]} 2. Nf3 {[%clk 0:02:58]}  d5 {[%clk 0:02:53]} 3. Bf4 {[%clk 0:02:57]}  Bd6 {[%clk 0:02:53]} 4. Bxd6 {[%clk 0:02:54]}  Qxd6 {[%clk 0:02:52]} 5. e3 {[%clk 0:02:55]}  Nf6 {[%clk 0:02:51]} 6. c4 {[%clk 0:02:54]}  c5 {[%clk 0:02:50]} 7. Nc3 {[%clk 0:02:53]}  dxc4 {[%clk 0:02:45]} 8. dxc5 {[%clk 0:02:52]}  Qxc5 {[%clk 0:02:44]} 9. Qa4+ {[%clk 0:02:52]}  Bd7 {[%clk 0:02:45]} 10. Qxc4 {[%clk 0:02:52]}  Qb6 {[%clk 0:02:35]} 11. Be2 {[%clk 0:02:47]}  O-O {[%clk 0:02:27]} 12. Qd4 {[%clk 0:02:45]}  Qxb2 {[%clk 0:02:22]} 13. Rb1 {[%clk 0:02:45]}  Qa3 {[%clk 0:02:13]} 14. Rxb7 {[%clk 0:01:50]}  Nc6 {[%clk 0:02:11]} 15. Qd2 {[%clk 0:01:47]}  Na5 {[%clk 0:01:43]} 16. Nb5 {[%clk 0:01:42]}  Bxb5 {[%clk 0:01:11]} 17. Rxb5 {[%clk 0:01:43]}  Nc6 {[%clk 0:01:07]} 18. Rb3 {[%clk 0:01:40]}  Qe7 {[%clk 0:00:50]} 19. O-O {[%clk 0:01:39]}  Rfd8 {[%clk 0:00:50]} 20. Qc2 {[%clk 0:01:37]}  Rd6 {[%clk 0:00:43]} 21. Rc3 {[%clk 0:01:33]}  Nb4 {[%clk 0:00:43]} 22. Qb2 {[%clk 0:01:31]}  Nbd5 {[%clk 0:00:43]} 23. Rc4 {[%clk 0:01:31]}  Rb6 {[%clk 0:00:43]} 24. Qc2 {[%clk 0:01:29]}  Rd8 {[%clk 0:00:41]} 25. Rd1 {[%clk 0:01:02]}  Rbb8 {[%clk 0:00:41]} 26. a4 {[%clk 0:00:58]}  Nb4 {[%clk 0:00:37]} 27. Qc1 {[%clk 0:00:56]}  a5 {[%clk 0:00:37]} 28. Ne5 {[%clk 0:00:53]}  Rxd1+ {[%clk 0:00:36]} 29. Qxd1 {[%clk 0:00:53]}  Rd8 {[%clk 0:00:37]} 30. Qc1 {[%clk 0:00:48]}  Nfd5 {[%clk 0:00:32]} 31. e4 {[%clk 0:00:43]}  Nf6 {[%clk 0:00:18]} 32. Rc7 {[%clk 0:00:41]}  Nd7 {[%clk 0:00:18]} 33. Bb5 {[%clk 0:00:40]}  Qd6 {[%clk 0:00:02]} 34. Nxd7 {[%clk 0:00:40]} 1-0


[Site "https://www.chess.com"]

[Event "Titled Tuesday Blitz August 3 2021"]
[White "Nazaretyan, Tigran"]
[Black "Hoffmann, Asa"]
[WhiteFideId "24162345"]
[BlackFideId "2001470"]
[WhiteElo "2214"]
[BlackElo "2117"]
[Result "0-1"]
[Round "04"]
[TimeControl "180+1"]
[Date "2021.08.03"]
[WhiteClock "0:00:08"]
[BlackClock "0:00:32"]

1. d4 {[%clk 0:03:00]}  Nf6 {[%clk 0:02:51]} 2. c4 {[%clk 0:03:00]}  c5 {[%clk 0:02:50]} 3. d5 {[%clk 0:02:59]}  e5 {[%clk 0:02:47]} 4. Nc3 {[%clk 0:02:58]}  d6 {[%clk 0:02:47]} 5. e4 {[%clk 0:02:58]}  Be7 {[%clk 0:02:46]} 6. g3 {[%clk 0:02:58]}  O-O {[%clk 0:02:46]} 7. Bg2 {[%clk 0:02:58]}  Na6 {[%clk 0:02:46]} 8. Nge2 {[%clk 0:02:58]}  Ne8 {[%clk 0:02:45]} 9. O-O {[%clk 0:02:57]}  Bd7 {[%clk 0:02:45]} 10. a3 {[%clk 0:02:48]}  Nec7 {[%clk 0:02:44]} 11. a4 {[%clk 0:02:39]}  Nb4 {[%clk 0:02:42]} 12. f4 {[%clk 0:02:39]}  Bf6 {[%clk 0:02:42]} 13. f5 {[%clk 0:02:38]}  b6 {[%clk 0:02:41]} 14. h4 {[%clk 0:02:37]}  a6 {[%clk 0:02:40]} 15. Kh2 {[%clk 0:02:34]}  Qe7 {[%clk 0:02:40]} 16. Ng1 {[%clk 0:02:31]}  b5 {[%clk 0:02:38]} 17. Nf3 {[%clk 0:02:29]}  bxc4 {[%clk 0:02:34]} 18. g4 {[%clk 0:02:21]}  Bxh4 {[%clk 0:02:03]} 19. g5 {[%clk 0:02:21]}  f6 {[%clk 0:01:45]} 20. g6 {[%clk 0:02:12]}  Bg5 {[%clk 0:01:38]} 21. gxh7+ {[%clk 0:01:58]}  Kh8 {[%clk 0:01:36]} 22. Nxg5 {[%clk 0:01:51]}  fxg5 {[%clk 0:01:36]} 23. Qh5 {[%clk 0:01:51]}  Be8 {[%clk 0:01:34]} 24. Qg4 {[%clk 0:01:49]}  Nd3 {[%clk 0:01:27]} 25. Bxg5 {[%clk 0:01:49]}  Qf7 {[%clk 0:01:27]} 26. f6 {[%clk 0:01:47]}  g6 {[%clk 0:01:18]} 27. Kg3 {[%clk 0:01:47]}  Rb8 {[%clk 0:01:13]} 28. Nd1 {[%clk 0:01:38]}  Rb3 {[%clk 0:01:08]} 29. Bf3 {[%clk 0:01:38]}  Bd7 {[%clk 0:01:00]} 30. Qh4 {[%clk 0:01:34]}  Qxh7 {[%clk 0:00:57]} 31. Rh1 {[%clk 0:01:21]}  Qxh4+ {[%clk 0:00:56]} 32. Rxh4+ {[%clk 0:01:22]}  Kg8 {[%clk 0:00:56]} 33. Ne3 {[%clk 0:01:11]}  Nf4 {[%clk 0:00:53]} 34. Ng4 {[%clk 0:00:59]}  Bxg4 {[%clk 0:00:49]} 35. Kxg4 {[%clk 0:00:59]}  Ne8 {[%clk 0:00:45]} 36. Rah1 {[%clk 0:00:51]}  Nh5 {[%clk 0:00:40]} 37. Rxh5 {[%clk 0:00:22]}  gxh5+ {[%clk 0:00:39]} 38. Rxh5 {[%clk 0:00:23]}  Nxf6+ {[%clk 0:00:38]} 39. Bxf6 {[%clk 0:00:23]}  Rxf6 {[%clk 0:00:38]} 40. Be2 {[%clk 0:00:20]}  Re3 {[%clk 0:00:35]} 41. Bd1 {[%clk 0:00:15]}  Kg7 {[%clk 0:00:33]} 42. Bc2 {[%clk 0:00:08]}  Rf4+ {[%clk 0:00:32]} 0-1


[Site "https://www.chess.com"]

[Event "Titled Tuesday Blitz August 3 2021"]
[White "Onyshchuk, Volodymyr"]
[Black "Daggupati, Balaji"]
[WhiteFideId "14114038"]
[BlackFideId "2090759"]
[WhiteElo "2603"]
[BlackElo "2689"]
[Result "1-0"]
[Round "04"]
[TimeControl "180+1"]
[Date "2021.08.03"]
[WhiteClock "0:00:50"]
[BlackClock "0:01:14"]

1. e4 {[%clk 0:03:00]}  c5 {[%clk 0:02:58]} 2. Ne2 {[%clk 0:02:59]}  e6 {[%clk 0:02:55]} 3. g3 {[%clk 0:02:56]}  d5 {[%clk 0:02:54]} 4. Bg2 {[%clk 0:02:56]}  dxe4 {[%clk 0:02:53]} 5. Nbc3 {[%clk 0:02:56]}  Nf6 {[%clk 0:02:54]} 6. Nxe4 {[%clk 0:02:55]}  Nxe4 {[%clk 0:02:50]} 7. Bxe4 {[%clk 0:02:54]}  Be7 {[%clk 0:02:50]} 8. d4 {[%clk 0:02:52]}  cxd4 {[%clk 0:02:48]} 9. Qxd4 {[%clk 0:02:51]}  Qxd4 {[%clk 0:02:48]} 10. Nxd4 {[%clk 0:02:51]}  O-O {[%clk 0:02:48]} 11. Be3 {[%clk 0:02:49]}  Na6 {[%clk 0:02:48]} 12. O-O-O {[%clk 0:02:48]}  Nc5 {[%clk 0:02:46]} 13. Bg2 {[%clk 0:02:45]}  Bd7 {[%clk 0:02:46]} 14. Nb3 {[%clk 0:02:42]}  Nxb3+ {[%clk 0:02:42]} 15. axb3 {[%clk 0:02:41]}  Bc6 {[%clk 0:02:29]} 16. Bxc6 {[%clk 0:02:40]}  bxc6 {[%clk 0:02:30]} 17. Rd7 {[%clk 0:02:40]}  Bf6 {[%clk 0:02:31]} 18. Rhd1 {[%clk 0:02:33]}  a5 {[%clk 0:02:30]} 19. R1d6 {[%clk 0:02:27]}  a4 {[%clk 0:02:30]} 20. bxa4 {[%clk 0:02:18]}  Rxa4 {[%clk 0:02:28]} 21. c3 {[%clk 0:02:16]}  Ra6 {[%clk 0:01:59]} 22. Kc2 {[%clk 0:02:15]}  Rb8 {[%clk 0:01:58]} 23. h4 {[%clk 0:01:38]}  g6 {[%clk 0:01:55]} 24. Ra7 {[%clk 0:01:25]}  Rxa7 {[%clk 0:01:47]} 25. Bxa7 {[%clk 0:01:25]}  Rc8 {[%clk 0:01:41]} 26. b4 {[%clk 0:01:24]}  Ra8 {[%clk 0:01:37]} 27. Be3 {[%clk 0:01:17]}  Rc8 {[%clk 0:01:33]} 28. Kb3 {[%clk 0:01:16]}  Kf8 {[%clk 0:01:30]} 29. Rd7 {[%clk 0:01:16]}  Ke8 {[%clk 0:01:28]} 30. Rb7 {[%clk 0:01:14]}  Be7 {[%clk 0:01:28]} 31. c4 {[%clk 0:01:09]}  Rd8 {[%clk 0:01:25]} 32. Rc7 {[%clk 0:00:59]}  Rd1 {[%clk 0:01:19]} 33. c5 {[%clk 0:00:52]}  Rb1+ {[%clk 0:01:15]} 34. Kc4 {[%clk 0:00:51]}  Rc1+ {[%clk 0:01:14]} 35. Bxc1 {[%clk 0:00:50]} 1-0


[Site "https://www.chess.com"]

[Event "Titled Tuesday Blitz August 3 2021"]
[White "Pavlov, Sergey"]
[Black "Grinblat, Dmitry"]
[WhiteFideId "14114330"]
[BlackFideId "4163257"]
[WhiteElo "2428"]
[BlackElo "2483"]
[Result "1-0"]
[Round "04"]
[TimeControl "180+1"]
[Date "2021.08.03"]
[WhiteClock "0:01:00"]
[BlackClock "0:01:13"]

1. d4 {[%clk 0:03:00]}  d5 {[%clk 0:02:59]} 2. c4 {[%clk 0:03:00]}  e6 {[%clk 0:03:00]} 3. Nc3 {[%clk 0:03:00]}  Nf6 {[%clk 0:03:00]} 4. Nf3 {[%clk 0:03:00]}  Nbd7 {[%clk 0:03:00]} 5. g3 {[%clk 0:02:59]}  Be7 {[%clk 0:02:59]} 6. Bg2 {[%clk 0:02:59]}  O-O {[%clk 0:02:59]} 7. O-O {[%clk 0:03:00]}  c5 {[%clk 0:02:57]} 8. cxd5 {[%clk 0:02:58]}  exd5 {[%clk 0:02:55]} 9. b3 {[%clk 0:02:55]}  b6 {[%clk 0:02:51]} 10. dxc5 {[%clk 0:02:54]}  Nxc5 {[%clk 0:02:50]} 11. Nd4 {[%clk 0:02:55]}  Bb7 {[%clk 0:02:28]} 12. Nf5 {[%clk 0:02:54]}  Re8 {[%clk 0:02:26]} 13. Bb2 {[%clk 0:02:42]}  Bf8 {[%clk 0:02:18]} 14. Rc1 {[%clk 0:02:35]}  g6 {[%clk 0:02:15]} 15. Nd4 {[%clk 0:02:08]}  Bg7 {[%clk 0:02:14]} 16. e3 {[%clk 0:02:03]}  Nfe4 {[%clk 0:02:05]} 17. b4 {[%clk 0:01:59]}  Nxc3 {[%clk 0:02:02]} 18. Bxc3 {[%clk 0:01:59]}  Ne4 {[%clk 0:01:56]} 19. Bb2 {[%clk 0:02:00]}  Rc8 {[%clk 0:01:51]} 20. Qa4 {[%clk 0:01:57]}  a6 {[%clk 0:01:43]} 21. b5 {[%clk 0:01:44]}  Qd7 {[%clk 0:01:32]} 22. Qb4 {[%clk 0:01:26]}  a5 {[%clk 0:01:22]} 23. Qa3 {[%clk 0:01:17]}  Nd2 {[%clk 0:01:18]} 24. Rfd1 {[%clk 0:01:08]}  Nc4 {[%clk 0:01:16]} 25. Qb3 {[%clk 0:01:08]}  a4 {[%clk 0:01:15]} 26. Qb4 {[%clk 0:01:03]}  Bf8 {[%clk 0:01:14]} 27. Qc3 {[%clk 0:01:02]}  Nxe3 {[%clk 0:01:13]} 28. Nc6 {[%clk 0:01:00]} 1-0


[Site "https://www.chess.com"]

[Event "Titled Tuesday Blitz August 3 2021"]
[White "Pein, Jonathan"]
[Black "Solon, Nathan"]
[WhiteFideId "417092"]
[BlackFideId "2017229"]
[WhiteElo "2167"]
[BlackElo "2622"]
[Result "0-1"]
[Round "04"]
[TimeControl "180+1"]
[Date "2021.08.03"]
[WhiteClock "0:00:03"]
[BlackClock "0:00:11"]

1. Nf3 {[%clk 0:03:00]}  d5 {[%clk 0:02:59]} 2. b3 {[%clk 0:03:01]}  Nf6 {[%clk 0:02:56]} 3. Bb2 {[%clk 0:03:02]}  e6 {[%clk 0:02:57]} 4. e3 {[%clk 0:03:00]}  Bd6 {[%clk 0:02:55]} 5. d4 {[%clk 0:03:00]}  O-O {[%clk 0:02:49]} 6. Bd3 {[%clk 0:03:00]}  c5 {[%clk 0:02:49]} 7. Nbd2 {[%clk 0:02:57]}  b6 {[%clk 0:02:48]} 8. Qe2 {[%clk 0:02:57]}  Bb7 {[%clk 0:02:46]} 9. h4 {[%clk 0:02:56]}  Nbd7 {[%clk 0:02:33]} 10. h5 {[%clk 0:02:55]}  h6 {[%clk 0:02:32]} 11. Rh3 {[%clk 0:02:53]}  Ne4 {[%clk 0:02:29]} 12. O-O-O {[%clk 0:02:45]}  a5 {[%clk 0:02:25]} 13. g4 {[%clk 0:02:40]}  a4 {[%clk 0:02:22]} 14. g5 {[%clk 0:02:40]}  axb3 {[%clk 0:02:10]} 15. axb3 {[%clk 0:02:40]}  Nxg5 {[%clk 0:01:51]} 16. Nxg5 {[%clk 0:02:40]}  Qxg5 {[%clk 0:01:52]} 17. f4 {[%clk 0:02:29]}  Qe7 {[%clk 0:01:45]} 18. dxc5 {[%clk 0:02:30]}  Bxc5 {[%clk 0:01:33]} 19. Rg3 {[%clk 0:02:29]}  f6 {[%clk 0:01:25]} 20. Rdg1 {[%clk 0:02:29]}  g5 {[%clk 0:01:09]} 21. Nb1 {[%clk 0:02:20]}  Ra2 {[%clk 0:01:02]} 22. fxg5 {[%clk 0:02:20]}  hxg5 {[%clk 0:01:01]} 23. Rxg5+ {[%clk 0:02:15]}  fxg5 {[%clk 0:00:58]} 24. Bc3 {[%clk 0:01:49]}  Bb4 {[%clk 0:00:47]} 25. Bxb4 {[%clk 0:01:48]}  Qxb4 {[%clk 0:00:48]} 26. Rxg5+ {[%clk 0:01:48]}  Kh8 {[%clk 0:00:49]} 27. Rg6 {[%clk 0:01:32]}  Rf6 {[%clk 0:00:46]} 28. Rxf6 {[%clk 0:01:16]}  Nxf6 {[%clk 0:00:47]} 29. Qf2 {[%clk 0:01:16]}  Qe7 {[%clk 0:00:42]} 30. Qf4 {[%clk 0:01:15]}  Ra8 {[%clk 0:00:32]} 31. Qh6+ {[%clk 0:01:06]}  Kg8 {[%clk 0:00:31]} 32. Qg5+ {[%clk 0:01:03]}  Qg7 {[%clk 0:00:31]} 33. Bg6 {[%clk 0:01:03]}  Ne4 {[%clk 0:00:26]} 34. Qg4 {[%clk 0:01:00]}  Bc8 {[%clk 0:00:17]} 35. h6 {[%clk 0:00:58]}  Qf6 {[%clk 0:00:17]} 36. Bxe4+ {[%clk 0:00:51]}  Kh8 {[%clk 0:00:17]} 37. h7 {[%clk 0:00:37]}  Bd7 {[%clk 0:00:17]} 38. Bd3 {[%clk 0:00:37]}  Rf8 {[%clk 0:00:16]} 39. Kd2 {[%clk 0:00:33]}  Be8 {[%clk 0:00:16]} 40. Nc3 {[%clk 0:00:33]}  Qf2+ {[%clk 0:00:15]} 41. Ne2 {[%clk 0:00:33]}  Qf6 {[%clk 0:00:14]} 42. Nf4 {[%clk 0:00:32]}  d4 {[%clk 0:00:15]} 43. Nxe6 {[%clk 0:00:30]}  dxe3+ {[%clk 0:00:14]} 44. Kd1 {[%clk 0:00:26]}  Bd7 {[%clk 0:00:12]} 45. Nxf8 {[%clk 0:00:03]}  Bxg4+ {[%clk 0:00:11]} 0-1


[Site "https://www.chess.com"]

[Event "Titled Tuesday Blitz August 3 2021"]
[White "Potapova, Margarita"]
[Black "Navalgund, Niranjan"]
[WhiteFideId "14126869"]
[BlackFideId "5030854"]
[WhiteElo "2229"]
[BlackElo "2290"]
[Result "0-1"]
[Round "04"]
[TimeControl "180+1"]
[Date "2021.08.03"]
[WhiteClock "0:00:01"]
[BlackClock "0:00:40"]

1. Nf3 {[%clk 0:03:00]}  Nf6 {[%clk 0:02:59]} 2. b3 {[%clk 0:03:00]}  a5 {[%clk 0:02:58]} 3. a4 {[%clk 0:02:55]}  g6 {[%clk 0:02:56]} 4. Bb2 {[%clk 0:02:55]}  Bg7 {[%clk 0:02:57]} 5. g3 {[%clk 0:02:55]}  O-O {[%clk 0:02:58]} 6. Bg2 {[%clk 0:02:55]}  d6 {[%clk 0:02:53]} 7. O-O {[%clk 0:02:55]}  e5 {[%clk 0:02:53]} 8. d3 {[%clk 0:02:55]}  Bg4 {[%clk 0:02:52]} 9. Nbd2 {[%clk 0:02:54]}  Qc8 {[%clk 0:02:51]} 10. Nc4 {[%clk 0:02:48]}  Bh3 {[%clk 0:02:50]} 11. e4 {[%clk 0:02:44]}  Nc6 {[%clk 0:02:46]} 12. Qe2 {[%clk 0:02:41]}  Nh5 {[%clk 0:02:43]} 13. Bxh3 {[%clk 0:02:26]}  Qxh3 {[%clk 0:02:42]} 14. Ng5 {[%clk 0:02:27]}  Qd7 {[%clk 0:02:40]} 15. Nf3 {[%clk 0:02:02]}  f5 {[%clk 0:02:38]} 16. exf5 {[%clk 0:01:59]}  Rxf5 {[%clk 0:02:38]} 17. Nh4 {[%clk 0:01:55]}  Rf7 {[%clk 0:02:36]} 18. f3 {[%clk 0:01:25]}  Raf8 {[%clk 0:02:24]} 19. Rae1 {[%clk 0:01:24]}  g5 {[%clk 0:01:58]} 20. Ng2 {[%clk 0:01:22]}  Qh3 {[%clk 0:01:57]} 21. Nge3 {[%clk 0:01:13]}  Nf6 {[%clk 0:01:52]} 22. Qg2 {[%clk 0:01:12]}  Qd7 {[%clk 0:01:49]} 23. Bc1 {[%clk 0:01:09]}  Nd4 {[%clk 0:01:49]} 24. Nxa5 {[%clk 0:01:03]}  Nh5 {[%clk 0:01:44]} 25. Kh1 {[%clk 0:00:40]}  Nxf3 {[%clk 0:01:36]} 26. Rd1 {[%clk 0:00:40]}  g4 {[%clk 0:01:30]} 27. Nac4 {[%clk 0:00:38]}  d5 {[%clk 0:01:25]} 28. Nd2 {[%clk 0:00:36]}  Nd4 {[%clk 0:01:19]} 29. c3 {[%clk 0:00:34]}  Nf3 {[%clk 0:01:10]} 30. c4 {[%clk 0:00:26]}  d4 {[%clk 0:01:09]} 31. Nd5 {[%clk 0:00:20]}  c6 {[%clk 0:01:09]} 32. Nb4 {[%clk 0:00:19]}  Nxd2 {[%clk 0:00:56]} 33. Bxd2 {[%clk 0:00:17]}  Rf3 {[%clk 0:00:55]} 34. Nc2 {[%clk 0:00:16]}  Qf5 {[%clk 0:00:53]} 35. Rxf3 {[%clk 0:00:16]}  gxf3 {[%clk 0:00:53]} 36. Qf1 {[%clk 0:00:11]}  f2 {[%clk 0:00:51]} 37. Kg2 {[%clk 0:00:02]}  Qf3+ {[%clk 0:00:51]} 38. Kh3 {[%clk 0:00:03]}  Rf5 {[%clk 0:00:44]} 39. Ne1 {[%clk 0:00:01]}  Nf4+ {[%clk 0:00:43]} 40. Kh4 {[%clk 0:00:01]}  Bf6# {[%clk 0:00:40]} 0-1


[Site "https://www.chess.com"]